fUSD/lending_fUSD_20250326
["ID","MTS","AMOUNT","RATE_DAILY","PERIOD"]
[356685922,1742951446255,-397.94510674,0.0004379,2]
[356685923,1742951446283,499.99,0.00032254,120]
[356685928,1742952308164,191778.00800978,0.00012,2]
[356685931,1742952361432,150.15347361,0.0001194,2]
[356686311,1742952476814,-151.33,0.0002,4]
[356686323,1742952601899,-150.0,0.00024,5]
[356686330,1742952632292,-474.74993295,0.0002,4]
[356686331,1742952632391,-65.18168685,0.0002,4]
[356686332,1742952632401,-4850.00297171,0.00024,5]
[356686333,1742952632411,-52.19544144,0.00026849,2]
[356686334,1742952632486,-121.42455856,0.00026849,2]
[356686335,1742952632496,-313.82690344,0.000269,4]
[356686336,1742952632505,-173.62,0.00032646,2]
[356686337,1742952632514,-736.32853744,0.00035,2]
[356686338,1742952632708,-308.79,0.00035,2]
[356686468,1742952638122,-454.88146256,0.00035,2]
[356686469,1742952638132,-173.62,0.00038443,2]
[356686470,1742952638142,-300.0,0.00040756,5]
[356686471,1742952638152,-1071.62,0.00040757,2]
[356686472,1742952638162,-161.57,0.000408,31]
[356686473,1742952638172,-151.0,0.00041,14]
[356686474,1742952638182,-294.12,0.00041857,2]
[356686475,1742952638191,-219.0,0.00041999,4]
[356686476,1742952638201,-22.69479981,0.00041999,31]
[356686477,1742952638619,-368.49367635,0.00041999,31]
[356686478,1742952638628,-304.82857201,0.00042,120]
[356686479,1742952638712,-292.59393223,0.00042,120]
[356686480,1742952638798,-575.30635287,0.00042,120]
[356686481,1742952638810,-675.54813812,0.00042,120]
[356686484,1742952640679,-1213.26413,0.00040552,2]
[356686485,1742952640689,-18561.39644303,0.00042,120]
[356686486,1742952640703,-7082.94039801,0.00042,120]
[356686550,1742952644663,-7290.66270607,0.00042,120]
[356686551,1742952644674,-440.75,0.00042,120]
[356686552,1742952644686,-4924.74679698,0.00042,120]
[356686553,1742952644697,-3075.09999989,0.00042,120]
[356686554,1742952644709,-1349.25,0.00042,120]
[356686555,1742952644720,-541.3784688,0.00042,120]
[356686556,1742952646238,-348.78603795,0.00042,120]
[356686557,1742952646338,-493.1876468,0.00042,120]
[356686558,1742952646440,-628.37425704,0.00042,120]
[356686559,1742952646541,-323.84533763,0.00042,120]
[356686567,1742953321887,-150.0,0.00025,2]
[356686568,1742953533826,-218.42002402,0.00013699,2]
[356686569,1742953537752,-150.24,0.00013699,2]
[356686570,1742953541730,-225.39008775,0.00013699,2]
[356686571,1742953564104,-178.67,0.00013698,2]
[356686698,1742953650983,-471.10690917,0.00013698,2]
[356686699,1742953809180,-153.19309302,0.00013599,2]
[356686700,1742953809203,-13.03690698,0.00013673,2]
[356686705,1742953832397,-150.24,0.0001353,2]
[356686706,1742953832406,-287.71701188,0.00013673,2]
[356686707,1742953832415,-1800.80201919,0.00013698,2]
[356686708,1742953832522,-816.09218308,0.00013698,2]
[356686709,1742953832531,-1648.88730378,0.00013699,2]
[356686710,1742953832648,-1809.96258445,0.00013699,2]
[356686711,1742953832658,-4052.9,0.00013699,2]
[356686712,1742953832667,-4052.9,0.00013699,2]
[356686713,1742953832675,-4052.9,0.00013699,2]
[356686714,1742953832684,-4052.9,0.00013699,2]
[356686715,1742953832693,-4052.9,0.00013699,2]
[356686716,1742953832702,-4052.9,0.00013699,2]
[356686717,1742953832711,-4052.9,0.00013699,2]
[356686718,1742953832720,-3657.42583828,0.00013699,2]
[356686793,1742953838309,-395.47416172,0.00013699,2]
[356686794,1742953838318,-947.75874603,0.00013699,2]
[356686820,1742953840450,-770.89632057,0.00013699,2]
[356686821,1742953840462,-830.44000004,0.00013699,2]
[356686822,1742953840977,-0.01680568,0.00013699,2]
[356686823,1742953842630,-274.77666258,0.00013699,2]
[356686849,1742953846458,-1050.55828684,0.00013699,2]
[356686855,1742953847095,-150.0,0.00013699,2]
[356686856,1742954312419,-28.45317826,0.00013699,2]
[356686857,1742954312441,-2816.91662174,0.00013699,2]
[356686858,1742954366495,440.95,0.00032253,120]
[356686859,1742954403934,-252.8338836,0.00013599,2]
[356686860,1742954468602,-250.01656051,0.00013599,2]
[356686865,1742954514217,-155.76,0.00013599,2]
[356686867,1742954625244,-166.66,0.00013599,2]
[356686868,1742954727461,622.0,0.0002501,120]
[356687897,1742955031585,-366.96011243,0.00013599,2]
[356687898,1742955031596,-484.31730612,0.00013599,2]
[356687899,1742955031605,-500.0,0.00013673,2]
[356687900,1742955031614,-64.97269388,0.00013699,2]
[356687901,1742955031626,-634.23674173,0.00013699,2]
[356687902,1742955031897,-536.77394265,0.00013699,2]
[356687903,1742955031906,-431.4669786,0.00013699,2]
[356687930,1742955037532,-879.65,0.00013699,2]
[356687931,1742955037586,-596.76792635,0.00013699,2]
[356687932,1742955037597,-867.196083,0.00013699,2]
[356687933,1742955037641,-1277.81901205,0.00013699,2]
[356687934,1742955037650,-2496.93098795,0.00013699,2]
[356687935,1742955037661,-1555.96901205,0.00013699,2]
[356687936,1742955037671,-4052.9,0.00013699,2]
[356687937,1742955037680,-4052.9,0.00013699,2]
[356687938,1742955037689,-725.73098795,0.00013699,2]
[356687939,1742955037700,-1522.21865496,0.00013699,2]
[356687940,1742955037750,-1804.95035709,0.00013699,2]
[356687941,1742955037760,-4052.9,0.00013699,2]
[356687942,1742955037770,-4052.9,0.00013699,2]
[356687943,1742955037778,-351.51146379,0.00013699,2]
[356687944,1742955037790,-878.01,0.00013699,2]
[356687965,1742955039640,-2823.37853621,0.00013699,2]
[356687966,1742955039649,-1100.71847993,0.00013699,2]
[356687967,1742955039869,-0.00513293,0.00013699,2]
[356687968,1742955040401,-152.37,0.00013699,2]
[356688012,1742955046413,1531.8078,0.00013699,10]
[356688147,1742955365648,1276.5065,0.00013699,10]
[356688148,1742955463504,200.0,0.00032253,120]
[356688149,1742955613894,164.95232,0.00013699,10]
[356688150,1742955656696,1063.75542,0.00013699,10]
[356688151,1742955699486,164.95233,0.00013699,10]
[356688152,1742955742269,886.46285,0.00013699,10]
[356688153,1742955785050,164.95233,0.00013699,10]
[356688154,1742955827251,499.99,0.00032252,120]
[356688155,1742955827832,738.71904,0.00013699,10]
[356688156,1742955870663,164.95233,0.00013699,10]
[356688157,1742955900679,1000.0,0.00032252,30]
[356688158,1742955908322,213804.16172577,0.00012,2]
[356688159,1742955908354,3150.51641898,0.00012,2]
[356688160,1742955908841,283.5463311,0.00032252,90]
[356688161,1742955913467,615.5992,0.00013699,10]
[356688165,1742955967920,307.95080782,0.00032252,30]
[356688166,1742955991233,164.95233,0.00013699,10]
[356688167,1742956017757,573.13027601,0.00015,14]
[356688168,1742956034053,512.99934,0.00013699,10]
[356688169,1742956076811,164.95233874,0.00013699,10]
[356688176,1742956119623,427.49945,0.00013699,10]
[356688201,1742956231768,-235.97741584,0.00013443,2]
[356688202,1742956231778,-267.50695341,0.00013566,3]
[356688203,1742956232087,-82.49304659,0.00013566,3]
[356688204,1742956232097,-469.41313121,0.00013699,2]
[356688205,1742956237800,-281.71698718,0.00013699,2]
[356688215,1742956240112,-2048.69926001,0.00013699,2]
[356688216,1742956240121,-241.77,0.00013699,2]
[356688217,1742956240132,-350.0,0.00014776,3]
[356688218,1742956240141,-150.0,0.00014776,2]
[356688219,1742956240150,-150.0,0.00014922,2]
[356688220,1742956240160,-350.0,0.00015387,3]
[356688221,1742956240169,-250.50221214,0.00017314,2]
[356688222,1742956240178,-427.49945,0.00018699,10]
[356688223,1742956240188,-179.95,0.00018699,2]
[356688224,1742956240197,-252.88699913,0.0001901,7]
[356688225,1742956240206,-475.97746403,0.0002,4]
[356688226,1742956240215,-335.29287688,0.000227,3]
[356688227,1742956240224,-500.0,0.00023609,2]
[356688228,1742956240234,-366.47797604,0.00023609,2]
[356688229,1742956240243,-300.0,0.00023609,2]
[356688230,1742956240252,-77926.53641443,0.0002361,7]
[356688231,1742956240261,-427.49945,0.00023699,10]
[356688232,1742956240270,-2413.08911358,0.00024,5]
[356688233,1742956240279,-500.0,0.000245,2]
[356688234,1742956240288,-357.05709239,0.0002493,2]
[356688235,1742956240298,-250.0,0.00025,2]
[356688236,1742956240307,-160.96,0.00025,2]
[356688237,1742956240316,-27074.11725257,0.00025,2]
[356688238,1742956240325,-15000.0,0.000259,7]
[356688239,1742956240335,-154.73056,0.000259,7]
[356688240,1742956240344,-999.99,0.00026849,2]
[356688241,1742956240353,-155.21,0.00026849,2]
[356688242,1742956240362,-155.1,0.00026849,2]
[356688243,1742956240372,-155.34,0.00026849,2]
[356688244,1742956240383,-5314.73742652,0.00027,7]
[356688245,1742956240392,-153.22609839,0.00027945,5]
[356688246,1742956240402,-500.0,0.00027945,5]
[356688247,1742956240415,-161.5436642,0.00027945,5]
[356688248,1742956240424,-496.20913077,0.00027945,2]
[356688249,1742956240433,-200.82668695,0.00027945,5]
[356688250,1742956240442,-206.20749294,0.00027945,5]
[356688251,1742956240454,-173.127,0.00027945,2]
[356688252,1742956240464,-173.127,0.00027945,2]
[356688253,1742956240473,-173.127,0.00027945,2]
[356688254,1742956240482,-155.426093,0.00028245,7]
[356688255,1742956240491,-166.541644,0.00028245,7]
[356688256,1742956240501,-1253.91,0.00028245,2]
[356688257,1742956240510,-226.0,0.000286,5]
[356688258,1742956240520,-299.99,0.00028699,12]
[356688259,1742956240529,-427.49945,0.00028699,10]
[356688260,1742956240538,-1216.88,0.00029384,2]
[356688261,1742956240548,-773.08,0.00029818,2]
[356688262,1742956240557,-1000.0,0.00029979,5]
[356688263,1742956240566,-160.6939947,0.0003,120]
[356688264,1742956240576,-1253.91,0.00030509,2]
[356688265,1742956240585,-2951.3,0.0003097,2]
[356688266,1742956240594,-152.35192702,0.0003159,60]
[356688267,1742956240603,-183.47,0.00031605,30]
[356688268,1742956240613,-177.38,0.00031994,2]
[356688269,1742956240622,-200.0,0.00032253,2]
[356688270,1742956240633,-200.0,0.00032253,2]
[356688271,1742956240643,-511.11,0.000323,2]
[356688272,1742956240653,-511.11,0.00032333,2]
[356688273,1742956240663,-511.11,0.00032367,2]
[356688274,1742956240673,-511.12,0.000324,2]
[356688275,1742956240683,-200.0,0.00032576,2]
[356688276,1742956240692,-200.0,0.00032576,2]
[356688277,1742956240701,-1253.91,0.00032773,2]
[356688278,1742956240711,-200.0,0.00032901,2]
[356688279,1742956240721,-200.0,0.00032901,2]
[356688280,1742956240731,-155.34,0.00032968,2]
[356688281,1742956240740,-1138.99,0.00033038,2]
[356688282,1742956240749,-4760.4,0.00033038,2]
[356688283,1742956240758,-200.0,0.0003323,2]
[356688284,1742956240768,-200.0,0.0003323,2]
[356688285,1742956240777,-1000.0,0.00033425,5]
[356688286,1742956240786,-427.49945,0.00033699,10]
[356688287,1742956240795,-151.0,0.00033823,2]
[356688288,1742956240804,-1317.161,0.00034016,37]
[356688289,1742956240813,-189.478,0.00034016,37]
[356688290,1742956240822,-349.62,0.00034258,2]
[356688291,1742956240831,-1500.0,0.00034541,120]
[356688292,1742956240841,-150.0,0.00034548,10]
[356688293,1742956240850,-631.58,0.00034556,2]
[356688294,1742956240859,-225.82,0.0003466,120]
[356688295,1742956240868,-155.21,0.00034716,2]
[356688296,1742956240878,-278.19,0.00034718,2]
[356688297,1742956240887,-235.03,0.00034913,2]
[356688298,1742956240897,-151.0,0.0003494,7]
[356688299,1742956240906,-152.42167761,0.0003494,7]
[356688300,1742956240916,-151.653221,0.00034941,7]
[356688301,1742956240925,-172.074769,0.00034941,7]
[356688302,1742956240935,-151.0,0.00034941,7]
[356688303,1742956240944,-151.0,0.00034941,7]
[356688304,1742956240954,-197.315289,0.00034941,7]
[356688305,1742956240973,-8687.46,0.00034941,2]
[356688306,1742956240983,-3569.89,0.00034986,2]
[356688307,1742956240992,-250.0,0.00034986,2]
[356688308,1742956241001,-954.8,0.00035029,2]
[356688309,1742956241011,-1253.91,0.00035037,2]
[356688310,1742956241020,-2000.0,0.00035104,4]
[356688311,1742956241029,-500.0,0.00035153,5]
[356688312,1742956241038,-1852.42,0.00035276,2]
[356688313,1742956241047,-200.0,0.00035383,120]
[356688314,1742956241056,-640.35,0.00035456,2]
[356688315,1742956241065,-150.79,0.00035474,2]
[356688316,1742956241075,-183.25,0.00035493,2]
[356688317,1742956241083,-201.0,0.0003551,2]
[356688318,1742956241093,-150.75,0.00035616,2]
[356688319,1742956241102,-189.79,0.00035678,2]
[356688320,1742956241111,-2000.0,0.00035752,120]
[356688321,1742956241121,-931.67,0.00035764,2]
[356688322,1742956241131,-150.0,0.00035833,7]
[356688323,1742956241141,-1000.0,0.00035966,2]
[356688324,1742956241150,-1000.0,0.00036012,28]
[356688325,1742956241160,-1000.0,0.00036012,28]
[356688326,1742956241170,-1000.0,0.00036012,28]
[356688327,1742956241178,-1000.0,0.00036012,28]
[356688328,1742956241188,-1000.0,0.00036012,28]
[356688329,1742956241197,-1000.0,0.00036012,28]
[356688330,1742956241207,-1000.0,0.00036012,28]
[356688331,1742956241216,-1000.0,0.00036012,28]
[356688332,1742956241226,-1000.0,0.00036012,28]
[356688333,1742956241235,-1000.0,0.00036012,28]
[356688334,1742956241244,-1000.0,0.00036012,28]
[356688335,1742956241254,-1000.0,0.00036012,28]
[356688336,1742956241263,-560.945188,0.00036012,28]
[356688337,1742956241273,-2000.0,0.00036012,14]
[356688338,1742956241282,-2000.0,0.00036012,14]
[356688339,1742956241291,-2000.0,0.00036012,14]
[356688340,1742956241300,-2000.0,0.00036012,14]
[356688341,1742956241310,-2000.0,0.00036012,14]
[356688342,1742956241319,-2000.0,0.00036012,14]
[356688343,1742956241328,-341.208419,0.00036012,14]
[356688344,1742956241338,-519.401336,0.00036012,7]
[356688345,1742956241347,-519.401336,0.00036012,7]
[356688346,1742956241356,-23900.0,0.00036012,2]
[356688347,1742956241366,-187.04,0.00036282,120]
[356688348,1742956241375,-156.587,0.00036562,2]
[356688349,1742956241384,-201.0,0.0003697,2]
[356688350,1742956241393,-7307.1224006,0.00037076,2]
[356688351,1742956241403,-519.401336,0.00037076,7]
[356688352,1742956241415,-519.401336,0.00037076,7]
[356688353,1742956241426,-150.75,0.000371,2]
[356688354,1742956241435,-150.0,0.00037155,2]
[356688355,1742956241444,-1253.91,0.00037301,2]
[356688356,1742956241454,-2000.0,0.00037552,4]
[356688357,1742956241464,-519.401331,0.00037552,7]
[356688358,1742956241473,-931.67,0.00037552,2]
[356688359,1742956241482,-400.65,0.00037743,2]
[356688360,1742956241495,-400.65,0.00037823,2]
[356688361,1742956241506,-400.65,0.00037902,2]
[356688362,1742956241514,-400.65,0.00037982,2]
[356688363,1742956241523,-400.65,0.00038061,2]
[356688364,1742956241532,-400.65,0.00038141,2]
[356688365,1742956241541,-400.65,0.0003822,2]
[356688366,1742956241550,-400.65,0.00038299,2]
[356688367,1742956241558,-400.65,0.00038379,2]
[356688368,1742956241567,-201.0,0.0003843,2]
[356688369,1742956241576,-400.65,0.00038458,2]
[356688370,1742956241585,-150.0,0.00038525,2]
[356688371,1742956241594,-400.65,0.00038538,2]
[356688372,1742956241603,-150.75,0.00038584,2]
[356688373,1742956241613,-152.0,0.00038591,3]
[356688374,1742956241622,-400.65,0.00038617,2]
[356688375,1742956241633,-400.65,0.00038697,2]
[356688376,1742956241643,-427.49945,0.00038699,10]
[356688377,1742956241652,-400.65,0.00038776,2]
[356688378,1742956241661,-159.66802009,0.00038848,5]
[356688379,1742956241671,-1194.0,0.00038855,5]
[356688380,1742956241680,-400.65,0.00038856,2]
[356688381,1742956241689,-670.87904663,0.00038914,10]
[356688382,1742956241698,-182.40438329,0.00038915,2]
[356688383,1742956241708,-500.0,0.00038935,2]
[356688384,1742956241717,-400.65,0.00038935,2]
[356688385,1742956241726,-225.82,0.00038992,120]
[356688386,1742956241735,-7882.485952,0.00039,2]
[356688387,1742956241745,-400.65,0.00039014,2]
[356688388,1742956241754,-155.34,0.00039087,2]
[356688389,1742956241763,-400.65,0.00039094,2]
[356688390,1742956241772,-400.65,0.00039173,2]
[356688391,1742956241781,-400.65,0.00039253,2]
[356688392,1742956241791,-162.380719,0.00039301,2]
[356688393,1742956241908,-931.67,0.0003934,2]
[356688394,1742956241918,-1253.91,0.00039565,2]
[356688395,1742956241928,-4600.0,0.000397,14]
[356688396,1742956241937,-9200.0,0.000398,14]
[356688397,1742956241947,-152.0,0.00039859,4]
[356688398,1742956241956,-251.57060925,0.00039879,120]
[356688399,1742956241966,-1252.19628153,0.0003988,12]
[356688400,1742956241975,-201.0,0.0003989,2]
[356688401,1742956241984,-759.62099747,0.0003989,2]
[356688402,1742956241993,-13900.0,0.000399,14]
[356688403,1742956242002,-20177.8894522,0.0003996,3]
[356688404,1742956242012,-457.37207444,0.00039973,5]
[356688405,1742956242021,-500.0,0.00039973,5]
[356688406,1742956242030,-503.27977584,0.00039973,5]
[356688407,1742956242039,-500.0,0.00039973,31]
[356688408,1742956242048,-500.0,0.00039973,31]
[356688409,1742956242058,-500.0,0.00039973,31]
[356688410,1742956242067,-500.0,0.00039973,31]
[356688411,1742956242077,-500.0,0.00039973,31]
[356688412,1742956242086,-500.0,0.00039973,31]
[356688413,1742956242095,-643.17016745,0.00039973,31]
[356688414,1742956242104,-500.0,0.00039973,31]
[356688415,1742956242114,-500.0,0.00039973,31]
[356688416,1742956242124,-20177.8894522,0.00039979,3]
[356688417,1742956242135,-1144.12119965,0.00039979,30]
[356688418,1742956242144,-969.34514537,0.0003998,30]
[356688419,1742956242153,-15203.55126202,0.0003998,3]
[356688443,1742956245867,-379.79956158,0.000259,7]
[356688444,1742956246026,-9.75144042,0.000259,7]
[356688445,1742956246036,-3986.50608536,0.0003996,2]
[356688454,1742956260496,-150.0,0.0001412,2]
[356688455,1742956323826,-151.33,0.00015532,3]
[356688458,1742957081846,1095.7395645,0.00032253,120]
[356688650,1742957431865,-150.0,0.00015532,2]
[356688651,1742957431874,-350.0,0.00015532,3]
[356688652,1742957431883,-350.0,0.00016488,3]
[356688653,1742957431894,-150.0,0.00017085,2]
[356688654,1742957431903,-150.0,0.00017085,2]
[356688655,1742957431912,-350.0,0.00017085,3]
[356688656,1742957431922,-250.0,0.00025,2]
[356688657,1742957431931,-155.23,0.00026849,2]
[356688658,1742957431940,-320.17,0.00029384,2]
[356688659,1742957431949,-200.19612271,0.00032092,2]
[356688660,1742957431958,-155.23,0.00035321,2]
[356688661,1742957431967,-802.78779964,0.00035321,2]
[356688662,1742957432127,-14.60220036,0.00035321,2]
[356688663,1742957432137,-3050.91575338,0.00035321,2]
[356688664,1742957432149,-284.22884425,0.00035321,2]
[356688665,1742957432181,-386.61335883,0.00035321,2]
[356688666,1742957432192,-281.23001809,0.00035321,2]
[356688667,1742957432203,-325.11200482,0.00035321,2]
[356688668,1742957432340,-264.939999,0.00035321,2]
[356688714,1742957437914,-818.46002163,0.00035321,2]
[356688715,1742957437924,-150.99,0.00035321,2]
[356688716,1742957437934,-1003.13,0.00035526,2]
[356688717,1742957437943,-150.75,0.00037201,2]
[356688718,1742957437953,-745.33,0.0003731,2]
[356688719,1742957437962,-150.0,0.00037364,2]
[356688720,1742957437972,-200.0,0.000374,120]
[356688721,1742957437981,-1486.6,0.00037415,2]
[356688722,1742957437990,-231.82,0.000375,2]
[356688723,1742957438000,-400.65,0.00037658,2]
[356688724,1742957438009,-1737.71,0.00037699,120]
[356688725,1742957438019,-400.65,0.00037737,2]
[356688726,1742957438028,-1293.90384504,0.00037737,2]
[356688727,1742957438072,-665.83615496,0.00037737,2]
[356688728,1742957438082,-1003.13,0.0003779,2]
[356688729,1742957438098,-400.65,0.00037816,2]
[356688730,1742957438107,-802.23,0.0003783,2]
[356688731,1742957438116,-400.65,0.00037895,2]
[356688732,1742957438126,-324.11644767,0.000379,8]
[356688733,1742957438138,-600.0,0.00037967,2]
[356688734,1742957438147,-20108.75,0.00037968,2]
[356688735,1742957438156,-400.65,0.00037975,2]
[356688736,1742957438171,-200.0,0.00038,120]
[356688737,1742957438180,-241.56,0.00038045,120]
[356688738,1742957438189,-400.65,0.00038054,2]
[356688739,1742957438198,-400.65,0.00038133,2]
[356688740,1742957438207,-400.65,0.00038213,2]
[356688741,1742957438216,-400.65,0.00038292,2]
[356688742,1742957438225,-400.65,0.00038371,2]
[356688743,1742957438234,-1000.0,0.00038373,2]
[356688744,1742957438244,-400.65,0.0003845,2]
[356688745,1742957438253,-400.65,0.0003853,2]
[356688746,1742957438263,-250.0,0.00038583,2]
[356688747,1742957438272,-400.65,0.00038609,2]
[356688748,1742957438281,-366.47208184,0.00038677,30]
[356688749,1742957438291,-400.65,0.00038688,2]
[356688751,1742957438300,-154.12696486,0.00038747,2]
[356688753,1742957438309,-400.65,0.00038768,2]
[356688755,1742957438318,-19706.57405463,0.00038792,2]
[356688757,1742957438381,-3962.55749776,0.00038792,2]
[356688758,1742957438392,-230.86844761,0.00038792,2]
[356688759,1742957438402,-154.12696485,0.00038819,2]
[356688760,1742957438411,-400.65,0.00038847,2]
[356688761,1742957438420,-182.40438329,0.0003889,2]
[356688762,1742957438429,-2141.96736538,0.0003889,2]
[356688763,1742957438439,-2048.003565,0.0003889,2]
[356688764,1742957438451,-4059.62035122,0.0003889,2]
[356688766,1742957438463,-306.3817983,0.0003889,2]
[356688767,1742957438472,-154.12696485,0.0003889,2]
[356688768,1742957438481,-1252.19628153,0.0003889,11]
[356688769,1742957438490,-82.37765279,0.000389,53]
[356688770,1742957438501,-1446.39134721,0.000389,53]
[356688771,1742957438510,-175.273,0.000389,53]
[356688772,1742957438519,-4600.0,0.000389,14]
[356688773,1742957438528,-499.999999,0.000389,2]
[356688774,1742957438537,-759.62099747,0.000389,2]
[356688775,1742957438546,-150.75,0.00038917,2]
[356688776,1742957438555,-400.65,0.00038926,2]
[356688777,1742957438564,-500.0,0.00038973,5]
[356688778,1742957438573,-500.0,0.00038973,5]
[356688779,1742957438582,-457.37207444,0.00038973,5]
[356688780,1742957438591,-151.0,0.00038977,2]
[356688781,1742957438600,-15402.01190183,0.0003898,3]
[356688782,1742957439208,-168.48,0.0003898,3]
[356688805,1742957440005,-150.51,0.00038928,2]
[356688806,1742957440015,-307.53376257,0.0003898,3]
[356689097,1742957448352,-166.23,0.0003889,2]
[356689274,1742957476884,-150.0,0.00021745,2]
[356689275,1742957928478,840.69870498,1.096e-05,20]
[356689281,1742958632311,-150.0,0.00023919,2]
[356689282,1742958632321,-350.0,0.00023919,3]
[356689283,1742958632330,-250.0,0.00025,2]
[356689284,1742958632340,-350.0,0.00026311,3]
[356689285,1742958632349,-350.0,0.00026311,3]
[356689286,1742958632359,-155.1,0.00026849,2]
[356689287,1742958632369,-150.0,0.00026999,2]
[356689288,1742958632379,-228.44485394,0.00032254,2]
[356689289,1742958632388,-931.26,0.0003568,2]
[356689290,1742958632398,-150.75,0.0003728,2]
[356689291,1742958632407,-193.18,0.0003755,2]
[356689292,1742958632416,-1000.0,0.00037765,2]
[356689293,1742958632427,-169.36,0.00037765,120]
[356689294,1742958632436,-250.0,0.00037867,2]
[356689295,1742958632446,-313.31256611,0.000379,8]
[356689296,1742958632455,-160.08,0.00037907,2]
[356689297,1742958632464,-931.26,0.00037944,2]
[356689298,1742958632474,-3722.66,0.00037965,2]
[356689299,1742958632483,-168.48,0.00038002,2]
[356689300,1742958632493,-175.27495628,0.00038002,50]
[356689301,1742958632502,-1223.016,0.00038002,50]
[356689302,1742958632511,-251.57060925,0.00038086,120]
[356689303,1742958632521,-23900.0,0.00038087,2]
[356689304,1742958632530,-1376.90895708,0.00038111,120]
[356689305,1742958632539,-1614.19,0.00038359,120]
[356689306,1742958632548,-150.51,0.00038795,2]
[356689307,1742958632558,-4400.0,0.000388,14]
[356689308,1742958632567,-1812.23382031,0.00038889,2]
[356689309,1742958632576,-7700.37577191,0.0003889,2]
[356689310,1742958632585,-313.33352273,0.0003889,2]
[356689311,1742958632594,-154.461,0.000389,120]
[356689312,1742958632603,-1168.7165294,0.000389,11]
[356689313,1742958632613,-5671.40864634,0.000389,14]
[356689314,1742958632653,-2979.47032338,0.000389,14]
[356689405,1742958643207,-149.12103028,0.000389,14]
[356689406,1742958643217,-200.03,0.00038906,2]
[356689407,1742958643230,-247.92682617,0.00038973,5]
[356689408,1742958643240,-191.91857356,0.00038973,5]
[356689411,1742958644918,-308.08142644,0.00038973,5]
[356689412,1742958644927,-501.28610908,0.00038973,5]
[356689413,1742958644936,-227.99297228,0.00038977,2]
[356689414,1742958644945,-213.74972,0.00038977,64]
[356689415,1742958644954,-500.0,0.00038979,15]
[356689416,1742958644964,-500.0,0.00038979,15]
[356689417,1742958644973,-500.0,0.00038979,15]
[356689418,1742958644982,-500.0,0.00038979,15]
[356689419,1742958644992,-500.0,0.00038979,15]
[356689420,1742958645001,-500.0,0.00038979,15]
[356689421,1742958645011,-500.0,0.00038979,15]
[356689422,1742958645021,-45.24988881,0.00038979,15]
[356689423,1742958646234,-454.75011119,0.00038979,15]
[356689424,1742958646244,-500.0,0.00038979,15]
[356689425,1742958646253,-500.0,0.00038979,15]
[356689426,1742958646267,-500.0,0.00038979,15]
[356689427,1742958646276,-643.17016745,0.00038979,15]
[356689428,1742958646286,-211.16862233,0.0003898,8]
[356689429,1742958646295,-447.983652,0.0003898,14]
[356689430,1742958646305,-447.983652,0.0003898,14]
[356689431,1742958646315,-994.94379503,0.0003898,8]
[356689432,1742958646339,-832.07055688,0.0003898,8]
[356689470,1742958826697,467.21693756,2.4e-06,20]
[356689471,1742959508553,302979.09594925,0.00012,2]
[356689474,1742959554695,198.39363406,0.0001173,2]
[356689476,1742959734397,34000.0,3.225e-05,3]
[356689535,1742959832359,-350.0,0.00025925,3]
[356689536,1742959832369,-155.34,0.00026849,2]
[356689537,1742959832378,-350.0,0.000275,3]
[356689538,1742959832388,-52.25598532,0.00028466,3]